[Event "105th British-ch 2018"]
[Site "Hull"]
[Date "2018.08.02"]
[Round "6"]
[White "Muir, Andrew Joseph"]
[Black "Young"]
[Result "0-1"]
[ECO "D44"]
[WhiteElo "2291"]
[BlackElo "1962"]
[Annotator "NA"]
[PlyCount "68"]
[EventDate "2018.07.28"]
[EventType "swiss"]
[EventCountry "GBR"]
[SourceTitle "playchess.com"]
[Source "ChessBase"]
[SourceQuality "1"]
[TimeControl "40/5400+30:1800+30"]

1. d4 {[%emt 0:00:00]} d5 {[%emt 0:00:00]} 2. c4 {[%emt 0:00:00]} c6 {[%emt 0:00:00]} 3. Nf3 {[%emt 0:00:00]} Nf6 {[%emt 0:00:00]} 4. Nc3 {[%emt 0:00:00]} e6 {[%emt 0:00:09]} 5. Bg5 {[%emt 0:00:18]} dxc4 {[%emt 0:00:09]} 6. e4 {[%emt 0:00:21]} b5 {[%emt 0:00:09]} 7. e5 {[%emt 0:00:09]} h6 {[%emt 0:00:10]} 8. Bh4 {[%emt 0:00:06]} g5 {[%emt 0:00:12]} 9. Nxg5 {[%emt 0:00:08]} hxg5 {[%emt 0:00:08]} 10. Bxg5 {[%emt 0:00:04]} Nbd7 {[%emt 0:00:35]} 11. g3 {[%emt 0:00:17]} Qb6 {[%emt 0:01:23]} 12. exf6 {[%emt 0:00:20]} Bb7 {[%emt 0:00:11]} 13. Bg2 {[%emt 0:00:22]} c5 {[%emt 0:00:29]} 14. d5 {[%emt 0:00:29]} O-O-O {[%emt 0:00:21]} 15. O-O {[%emt 0:00:16]} b4 {[%emt 0:00:09]} 16. Na4 {[%emt 0:01:17]} Qb5 {[%emt 0:00:15]} 17. a3 {[%emt 0:01:21]} Nb8 {[%emt 0:00:20]} 18. axb4 {[%emt 0:02:30]} cxb4 {[%emt 0:00:12]} 19. Qg4 {[%emt 0:46:02]} Bxd5 {[%emt 0:01:29]} 20. Rfc1 {[%emt 0:05:23]} Nc6 {[%emt 0:02:34]} 21. Bxd5 {[%emt 0:02:16]} Rxd5 {[%emt 0:00:16]} 22. Qxc4 {[%emt 0:06:41]} Rd1+ {[%emt 0:00:51]} 23. Rxd1 {[%emt 0:04:07]} Qxc4 {[%emt 0:00:13]} 24. Be3 {[%emt 0:00:30]} Qg4 {[%emt 0:15:47]} 25. Rac1 {[%emt 0:04:27]} Kb8 {[%emt 0:07:58]} 26. Rd2 {[%emt 0:15:24]} Qh5 {[%emt 0:36:53]} 27. f4 {[%emt 0:08:35]} Qf3 {[%emt 0:03:28]} 28. Bf2 {[%emt 0:00:03]} Bh6 {[%emt 0:03:13]} 29. Rd7 {[%emt 0:01:22]} Bxf4 {[%emt 0:01:31]} 30. Rc5 {[%emt 0:01:32]} Be3 {[%emt 0:03:29]} 31. Rc2 {[%emt 0:00:32]} Nd4 {[%emt 0:02:14]} 32. Rxd4 {[%emt 0:00:10]} Bxd4 {[%emt 0:00:09]} 33. Bxd4 {[%emt 0:00:08]} Qd1+ {[%emt 0:00:07]} 34. Kg2 {[%emt 0:00:03]} Qxc2+ {[%emt 0:00:09]} 0-1

[Event "105th British-ch 2018"]
[Site "Hull"]
[Date "2018.08.02"]
[Round "6"]
[White "Abdulla, Murad"]
[Black "Maroroa, Sue Yuchan"]
[Result "0-1"]
[ECO "C77"]
[WhiteElo "2281"]
[BlackElo "2104"]
[Annotator "NA RC"]
[PlyCount "82"]
[EventDate "2018.07.28"]
[EventType "swiss"]
[EventCountry "GBR"]
[SourceTitle "playchess.com"]
[Source "ChessBase"]
[SourceQuality "1"]
[TimeControl "40/5400+30:1800+30"]

1. e4 {[%emt 0:02:33]} e5 {[%emt 0:00:00]} 2. Nf3 {[%emt 0:00:20]} Nc6 {[%emt 0:00:00]} 3. Bb5 {[%emt 0:00:26]} a6 {[%emt 0:00:00]} 4. Ba4 {[%emt 0:00:10]} Nf6 {[%emt 0:00:07]} 5. d3 {[%emt 0:00:16]} d6 {[%emt 0:00:14]} 6. c4 {[%emt 0:01:07]} g6 {[%emt 0:01:40]} 7. Nc3 {[%emt 0:03:00]} Bg7 {[%emt 0:00:23]} 8. h3 {[%emt 0:03:01]} h6 {[%emt 0:00:39]} 9. Be3 {[%emt 0:01:16]} O-O {[%emt 0:02:20]} 10. Qd2 {[%emt 0:01:08]} Kh7 {[%emt 0:00:25]} 11. a3 {[%emt 0:02:19]} Nd7 {[%emt 0:01:13]} 12. Bxc6 {[%emt 0:09:11]} bxc6 {[%emt 0:01:54]} 13. d4 {[%emt 0:01:23]} exd4 {[%emt 0:10:08]} 14. Nxd4 {[%emt 0:05:02]} Ne5 {[%emt 0:03:40]} 15. b3 {[%emt 0:02:39]} c5 {[%emt 0:08:27]} 16. Nde2 {[%emt 0:00:32]} Rb8 {[%emt 0:03:11]} 17. Rb1 {[%emt 0:08:43]} f5 {[%emt 0:03:55]} 18. f4 {[%emt 0:04:28]} Nc6 {[%emt 0:11:14]} 19. e5 {[%emt 0:01:43]} Re8 {[%emt 0:09:56]} 20. exd6 {[%emt 0:07:26]} cxd6 {[%emt 0:04:03]} 21. Nd5 {[%emt 0:07:52]} Nd4 {[%emt 0:04:05]} 22. O-O {[%emt 0:12:20]} Nxe2+ {[%emt 0:03:14]} 23. Qxe2 {[%emt 0:00:07]} Bb7 {[%emt 0:00:30]} 24. Rf3 {[%emt 0:04:43]} Bxd5 {[%emt 0:04:17]} 25. cxd5 {[%emt 0:00:13]} Qa5 {[%emt 0:00:31]} 26. Qd3 {[%emt 0:08:00]} Qxa3 {[%emt 0:03:40]} 27. Bf2 {[%emt 0:05:07]} Re4 {[%emt 0:03:01]} 28. Qc2 {[%emt 0:01:46]} Qb4 {[%emt 0:01:39]} 29. Qa2 {[%emt 0:02:31]} a5 {[%emt 0:02:44]} 30. Rd1 {[%emt 0:00:32]} Rbe8 {[%emt 0:04:40]} 31. Rd2 {[%emt 0:00:51]} Bc3 {[%emt 0:06:38]} 32. Rdd3 {[%emt 0:00:58]} Bg7 {[%emt 0:02:34]} 33. Rd2 {[%emt 0:00:29]} h5 {[%emt 0:02:53]} 34. Kh1 {[%emt 0:01:52]} Bc3 {[%emt 0:01:44]} 35. Rc2 {[%emt 0:00:51]} Re1+ {[%emt 0:00:38]} 36. Bxe1 {[%emt 0:01:18]} Rxe1+ {[%emt 0:00:02]} 37. Kh2 {[%emt 0:00:01]} Ra1 {[%emt 0:00:13]} 38. Qxa1 {[%emt 0:00:11]} Bxa1 {[%emt 0:00:02]} 39. Re2 {[%emt 0:00:06]} Bd4 {[%emt 0:01:27]} 40. Re7+ {[%emt 0:00:26]} Kh6 {[%emt 0:00:22]} 41. Re6 {[%emt 0:30:28]} h4 {[%emt 0:30:56]} 0-1

[Event "105th British-ch 2018"]
[Site "Hull"]
[Date "2018.08.02"]
[Round "6"]
[White "Pritchett, Craig William"]
[Black "Fitzsimons, David"]
[Result "1/2-1/2"]
[ECO "B06"]
[WhiteElo "2274"]
[BlackElo "2328"]
[Annotator "NA"]
[PlyCount "89"]
[EventDate "2018.07.28"]
[EventType "swiss"]
[EventCountry "GBR"]
[SourceTitle "playchess.com"]
[Source "ChessBase"]
[SourceQuality "1"]
[TimeControl "40/5400+30:1800+30"]

1. Nf3 {[%emt 0:00:00]} g6 {[%emt 0:00:00]} 2. e4 {[%emt 0:00:00]} Bg7 {[%emt 0:00:00]} 3. d4 {[%emt 0:00:10]} d6 {[%emt 0:00:00]} 4. Bc4 {[%emt 0:02:11]} Nf6 {[%emt 0:01:22]} 5. Qe2 {[%emt 0:00:13]} O-O {[%emt 0:00:06]} 6. O-O {[%emt 0:01:34]} Bg4 {[%emt 0:01:29]} 7. c3 {[%emt 0:02:33]} e5 {[%emt 0:01:23]} 8. dxe5 {[%emt 0:02:02]} dxe5 {[%emt 0:01:14]} 9. h3 {[%emt 0:00:20]} Bxf3 {[%emt 0:01:41]} 10. Qxf3 {[%emt 0:00:10]} Nbd7 {[%emt 0:00:14]} 11. Be3 $11 {[%emt 0:13:37]} Qe7 {[%emt 0:03:11]} 12. Nd2 {[%emt 0:00:53]} Rfd8 {[%emt 0:02:48]} 13. Nb3 {[%emt 0:08:56]} Ne8 {[%emt 0:05:40]} 14. Bd3 {[%emt 0:10:43]} Bf6 {[%emt 0:02:23]} 15. Rfd1 {[%emt 0:02:17]} Bg5 {[%emt 0:03:39]} 16. a4 {[%emt 0:00:33]} a5 {[%emt 0:02:51]} 17. Bc2 {[%emt 0:05:28]} Nd6 {[%emt 0:02:41]} 18. Nd2 {[%emt 0:14:27]} Kg7 {[%emt 0:13:12]} 19. Nf1 {[%emt 0:03:12]} Rf8 {[%emt 0:05:19]} 20. Rd5 {[%emt 0:10:30]} h6 {[%emt 0:11:07]} 21. Bxg5 {[%emt 0:04:11]} Qxg5 {[%emt 0:03:14]} 22. Ne3 {[%emt 0:01:07]} b6 {[%emt 0:06:50]} 23. Qg4 {[%emt 0:02:30]} Qxg4 {[%emt 0:01:58]} 24. hxg4 {[%emt 0:00:08]} Rfe8 {[%emt 0:01:50]} 25. f3 {[%emt 0:00:39]} Nf6 {[%emt 0:06:27]} 26. Rdd1 {[%emt 0:02:59]} Red8 {[%emt 0:01:22]} 27. Kf2 {[%emt 0:00:23]} Kf8 {[%emt 0:04:19]} 28. Ke2 {[%emt 0:01:02]} Ke7 {[%emt 0:00:25]} 29. Nd5+ {[%emt 0:01:23]} Nxd5 {[%emt 0:00:08]} 30. Rxd5 {[%emt 0:00:07]} f6 {[%emt 0:00:39]} 31. Rh1 {[%emt 0:01:33]} Rh8 {[%emt 0:00:31]} 32. g3 {[%emt 0:03:08]} Nb7 {[%emt 0:05:36]} 33. f4 {[%emt 0:01:38]} exf4 {[%emt 0:03:31]} 34. gxf4 {[%emt 0:00:08]} g5 {[%emt 0:00:03]} 35. e5 {[%emt 0:01:34]} gxf4 {[%emt 0:00:46]} 36. exf6+ {[%emt 0:00:10]} Kxf6 {[%emt 0:00:24]} 37. Rf5+ {[%emt 0:00:08]} Kg7 {[%emt 0:00:47]} 38. Rxf4 {[%emt 0:01:26]} Rhe8+ {[%emt 0:00:19]} 39. Kf3 {[%emt 0:01:24]} Rad8 {[%emt 0:00:55]} 40. g5 {[%emt 0:01:11]} hxg5 {[%emt 0:03:06]} 41. Rh7+ {[%emt 0:08:17]} Kg8 {[%emt 0:00:01]} 42. Rff7 {[%emt 0:03:35]} Rf8 {[%emt 0:00:06]} 43. Rhg7+ {[%emt 0:01:24]} Kh8 {[%emt 0:00:05]} 44. Rh7+ {[%emt 0:00:54]} Kg8 {[%emt 0:00:05]} 45. Rhg7+ {[%emt 0:01:01]} 1/2-1/2

[Event "105th British-ch 2018"]
[Site "Hull"]
[Date "2018.08.02"]
[Round "6"]
[White "Britton, Richard"]
[Black "Waddington, Mike P"]
[Result "1/2-1/2"]
[ECO "A26"]
[WhiteElo "2249"]
[BlackElo "2110"]
[Annotator "NA RC"]
[PlyCount "56"]
[EventDate "2018.07.28"]
[EventType "swiss"]
[EventCountry "GBR"]
[SourceTitle "playchess.com"]
[Source "ChessBase"]
[SourceQuality "1"]
[TimeControl "40/5400+30:1800+30"]

1. Nf3 {[%emt 0:00:00]} f5 {[%emt 0:00:00]} 2. g3 {[%emt 0:00:00]} Nf6 {[%emt 0:00:00]} 3. Bg2 {[%emt 0:00:00]} g6 {[%emt 0:00:00]} 4. O-O {[%emt 0:00:00]} Bg7 {[%emt 0:00:01]} 5. c4 {[%emt 0:00:00]} O-O {[%emt 0:00:07]} 6. Nc3 {[%emt 0:00:01]} d6 {[%emt 0:00:09]} 7. d3 {[%emt 0:00:05]} e5 {[%emt 0:00:12]} 8. Bd2 {[%emt 0:07:46]} Nc6 {[%emt 0:04:29]} 9. Rb1 {[%emt 0:00:33]} h6 {[%emt 0:01:37]} 10. b4 {[%emt 0:00:06]} g5 {[%emt 0:00:12]} 11. b5 {[%emt 0:01:14]} Ne7 {[%emt 0:01:06]} 12. a4 {[%emt 0:03:15]} Ng6 {[%emt 0:00:49]} 13. Ne1 $11 {[%emt 0:05:11]} f4 {[%emt 0:02:38]} 14. a5 {[%emt 0:03:07]} Rb8 {[%emt 0:02:22]} 15. Nc2 {[%emt 0:14:54]} h5 {[%emt 0:23:37]} 16. a6 {[%emt 0:05:34]} b6 {[%emt 0:04:06]} 17. Nb4 {[%emt 0:02:52]} Bd7 {[%emt 0:03:50]} 18. Ncd5 {[%emt 0:09:39]} g4 {[%emt 0:12:19]} 19. Nxf6+ {[%emt 0:06:59]} Bxf6 {[%emt 0:09:03]} 20. Be4 {[%emt 0:01:52]} Kg7 {[%emt 0:02:14]} 21. Nd5 {[%emt 0:04:18]} Bg5 {[%emt 0:03:52]} 22. Qc2 {[%emt 0:00:27]} Ne7 {[%emt 0:05:38]} 23. Nxe7 {[%emt 0:06:29]} Qxe7 {[%emt 0:00:21]} 24. e3 {[%emt 0:01:23]} fxe3 {[%emt 0:02:06]} 25. fxe3 {[%emt 0:02:13]} Rbe8 {[%emt 0:02:13]} 26. Rbe1 {[%emt 0:02:50]} Rxf1+ {[%emt 0:01:37]} 27. Rxf1 {[%emt 0:01:00]} Rf8 {[%emt 0:00:08]} 28. Qd1 {[%emt 0:01:26]} Rxf1+ {[%emt 0:00:20]} 1/2-1/2

[Event "105th British-ch 2018"]
[Site "Hull"]
[Date "2018.08.02"]
[Round "6"]
[White "Rudd, Jack"]
[Black "Ratnesan, Ranesh"]
[Result "1-0"]
[ECO "E75"]
[WhiteElo "2244"]
[BlackElo "2073"]
[Annotator "NA"]
[PlyCount "81"]
[EventDate "2018.07.28"]
[EventType "swiss"]
[EventCountry "GBR"]
[SourceTitle "playchess.com"]
[Source "ChessBase"]
[SourceQuality "1"]
[TimeControl "40/5400+30:1800+30"]

1. d4 {[%emt 0:00:00]} Nf6 {[%emt 0:00:00]} 2. c4 {[%emt 0:00:00]} g6 {[%emt 0:00:00]} 3. Nc3 {[%emt 0:00:00]} Bg7 {[%emt 0:00:00]} 4. e4 {[%emt 0:00:00]} d6 {[%emt 0:00:00]} 5. Be2 {[%emt 0:00:00]} O-O {[%emt 0:00:07]} 6. Bg5 {[%emt 0:00:00]} c5 {[%emt 0:00:25]} 7. d5 {[%emt 0:00:00]} h6 {[%emt 0:02:17]} 8. Be3 {[%emt 0:00:37]} e6 {[%emt 0:01:50]} 9. Nf3 {[%emt 0:00:39]} exd5 {[%emt 0:00:23]} 10. cxd5 {[%emt 0:00:07]} Re8 {[%emt 0:07:20]} 11. Nd2 {[%emt 0:00:34]} a6 {[%emt 0:11:32]} 12. a4 {[%emt 0:00:11]} b6 {[%emt 0:01:11]} 13. O-O {[%emt 0:00:11]} Nbd7 {[%emt 0:01:09]} 14. f4 {[%emt 0:00:56]} Qc7 {[%emt 0:06:00]} 15. Bf3 {[%emt 0:01:59]} Rb8 {[%emt 0:02:23]} 16. Rc1 {[%emt 0:01:48]} b5 {[%emt 0:10:33]} 17. axb5 {[%emt 0:00:59]} axb5 {[%emt 0:00:11]} 18. b4 {[%emt 0:00:05]} c4 {[%emt 0:00:40]} 19. Bf2 {[%emt 0:00:14]} Nf8 {[%emt 0:05:54]} 20. Ra1 {[%emt 0:02:19]} Bd7 {[%emt 0:03:29]} 21. Ra6 {[%emt 0:00:59]} Ng4 {[%emt 0:05:35]} 22. Bxg4 {[%emt 0:01:18]} Bxc3 {[%emt 0:00:23]} 23. Bxd7 {[%emt 0:00:11]} Qxd7 {[%emt 0:00:37]} 24. e5 {[%emt 0:00:09]} Qf5 {[%emt 0:15:12]} 25. exd6 {[%emt 0:03:59]} Bxb4 {[%emt 0:06:24]} 26. Nf3 {[%emt 0:00:37]} Rbd8 {[%emt 0:02:30]} 27. Rb6 {[%emt 0:03:57]} Bxd6 {[%emt 0:02:36]} 28. Rxb5 {[%emt 0:00:23]} Bxf4 {[%emt 0:02:56]} 29. Nd4 {[%emt 0:02:14]} Qg5 {[%emt 0:07:36]} 30. h4 {[%emt 0:02:11]} Qf6 {[%emt 0:01:36]} 31. Nc6 {[%emt 0:00:50]} Rc8 {[%emt 0:01:20]} 32. Qf3 {[%emt 0:01:34]} Be5 {[%emt 0:01:45]} 33. Qh3 {[%emt 0:00:51]} Qd6 {[%emt 0:00:48]} 34. Bc5 {[%emt 0:00:33]} Qd7 {[%emt 0:01:30]} 35. Qf3 {[%emt 0:00:28]} Bg7 {[%emt 0:00:46]} 36. Ra5 {[%emt 0:01:16]} Nh7 {[%emt 0:00:22]} 37. Ra7 {[%emt 0:00:21]} Rc7 {[%emt 0:00:09]} 38. Rxc7 {[%emt 0:00:06]} Qxc7 {[%emt 0:00:08]} 39. d6 {[%emt 0:00:31]} Qd7 40. Ne7+ {[%emt 0:00:00]} Kh8 {[%emt 0:01:32]} 41. Qxf7 {[%emt 0:29:47]} 1-0

[Event "105th British-ch 2018"]
[Site "Hull"]
[Date "2018.08.02"]
[Round "6"]
[White "Longson, Sarah N"]
[Black "Miller, Dominic"]
[Result "1-0"]
[ECO "B12"]
[WhiteElo "2123"]
[BlackElo "2017"]
[Annotator "NA"]
[PlyCount "75"]
[EventDate "2018.07.28"]
[EventType "swiss"]
[EventCountry "GBR"]
[SourceTitle "playchess.com"]
[Source "ChessBase"]
[SourceQuality "1"]
[TimeControl "40/5400+30:1800+30"]

1. e4 {[%emt 0:00:00]} c6 {[%emt 0:00:00]} 2. d4 {[%emt 0:00:00]} d5 {[%emt 0:00:00]} 3. f3 {[%emt 0:00:06]} e6 {[%emt 0:00:09]} 4. Bf4 {[%emt 0:07:00]} Nf6 {[%emt 0:01:32]} 5. Nc3 {[%emt 0:00:14]} Bb4 {[%emt 0:01:41]} 6. Qd3 {[%emt 0:00:14]} b6 {[%emt 0:03:15]} 7. Nge2 {[%emt 0:00:37]} Ba6 {[%emt 0:01:39]} 8. Qe3 {[%emt 0:00:51]} c5 {[%emt 0:06:56]} 9. O-O-O {[%emt 0:06:17]} O-O {[%emt 0:05:40]} 10. Bg5 {[%emt 0:04:22]} Bxe2 {[%emt 0:24:42]} 11. Nxe2 {[%emt 0:06:36]} h6 {[%emt 0:02:49]} 12. Bh4 {[%emt 0:04:09]} Ng4 13. fxg4 {[%emt 0:06:07]} Qxh4 {[%emt 0:00:18]} 14. exd5 {[%emt 0:26:06]} cxd4 {[%emt 0:08:53]} 15. Qxd4 {[%emt 0:02:34]} Bc5 {[%emt 0:00:08]} 16. Qe4 {[%emt 0:01:54]} exd5 {[%emt 0:00:32]} 17. Rxd5 {[%emt 0:03:51]} Nc6 {[%emt 0:02:45]} 18. g3 {[%emt 0:01:44]} Qf6 {[%emt 0:06:27]} 19. Rf5 {[%emt 0:02:59]} Qd6 {[%emt 0:02:32]} 20. Bg2 {[%emt 0:06:35]} Rad8 {[%emt 0:03:10]} 21. Rd5 {[%emt 0:02:08]} Qe7 {[%emt 0:05:25]} 22. Qxe7 {[%emt 0:01:28]} Nxe7 {[%emt 0:00:03]} 23. Re5 {[%emt 0:03:45]} Ng6 {[%emt 0:04:36]} 24. Re4 {[%emt 0:00:56]} f5 {[%emt 0:03:10]} 25. gxf5 {[%emt 0:02:14]} Rxf5 {[%emt 0:00:05]} 26. b4 {[%emt 0:02:59]} Be7 {[%emt 0:02:53]} 27. h4 {[%emt 0:05:02]} Rf2 {[%emt 0:01:43]} 28. Bh3 {[%emt 0:00:05]} Bxb4 {[%emt 0:01:13]} 29. h5 {[%emt 0:01:21]} Nf8 {[%emt 0:00:49]} 30. c3 {[%emt 0:00:48]} Bc5 {[%emt 0:01:21]} 31. Rd1 {[%emt 0:00:11]} Rxd1+ {[%emt 0:02:12]} 32. Kxd1 {[%emt 0:00:02]} Kf7 {[%emt 0:01:23]} 33. Bg4 {[%emt 0:01:01]} Rf6 {[%emt 0:04:16]} 34. Nf4 {[%emt 0:00:24]} g5 {[%emt 0:02:09]} 35. hxg6+ {[%emt 0:00:26]} Nxg6 {[%emt 0:00:50]} 36. Bh5 {[%emt 0:00:19]} a5 {[%emt 0:00:03]} 37. Nxg6 {[%emt 0:01:06]} Rxg6 {[%emt 0:00:03]} 38. Rg4 {[%emt 0:00:12]} 1-0

[Event "105th British-ch 2018"]
[Site "Hull"]
[Date "2018.08.02"]
[Round "6"]
[White "Sugden, John N"]
[Black "Mcphillips, Joseph"]
[Result "0-1"]
[ECO "C02"]
[WhiteElo "2090"]
[BlackElo "2402"]
[Annotator "ChessBase"]
[PlyCount "80"]
[EventDate "2018.07.28"]
[EventType "swiss"]
[EventCountry "GBR"]
[SourceTitle "playchess.com"]
[Source "ChessBase"]
[SourceQuality "1"]
[TimeControl "40/5400+30:1800+30"]

1. e4 {[%emt 0:00:00]} e6 {[%emt 0:00:00]} 2. d4 {[%emt 0:00:19]} d5 {[%emt 0:00:00]} 3. e5 {[%emt 0:01:38]} c5 {[%emt 0:00:00]} 4. c3 {[%emt 0:00:16]} Nc6 {[%emt 0:00:00]} 5. Nf3 {[%emt 0:00:18]} Qb6 {[%emt 0:00:00]} 6. a3 {[%emt 0:01:04]} Nh6 {[%emt 0:00:00]} 7. b4 {[%emt 0:02:39]} cxd4 {[%emt 0:00:00]} 8. cxd4 {[%emt 0:02:22]} Nf5 {[%emt 0:00:00]} 9. Be3 {[%emt 0:01:02]} Bd7 {[%emt 0:00:00]} 10. Bd3 {[%emt 0:10:10]} Nxe3 {[%emt 0:00:00]} 11. fxe3 {[%emt 0:00:17]} g6 {[%emt 0:00:00]} 12. h4 {[%emt 0:04:50]} Be7 {[%emt 0:19:46]} 13. Ke2 {[%emt 0:20:31]} Qc7 {[%emt 0:29:16]} 14. Nbd2 {[%emt 0:03:59]} Nd8 {[%emt 0:12:59]} 15. Qb1 {[%emt 0:06:39]} Qb6 {[%emt 0:08:55]} 16. Nb3 {[%emt 0:09:03]} Bb5 {[%emt 0:01:35]} 17. Bxb5+ {[%emt 0:03:00]} Qxb5+ {[%emt 0:00:05]} 18. Qd3 {[%emt 0:00:48]} a6 {[%emt 0:07:54]} 19. Rhc1 {[%emt 0:04:05]} Qb6 {[%emt 0:01:45]} 20. Rc3 {[%emt 0:03:30]} f5 {[%emt 0:04:40]} 21. exf6 {[%emt 0:05:31]} Bxf6 {[%emt 0:00:04]} 22. h5 {[%emt 0:01:11]} g5 {[%emt 0:01:53]} 23. e4 {[%emt 0:04:16]} O-O {[%emt 0:03:42]} 24. e5 {[%emt 0:01:45]} Be7 {[%emt 0:00:04]} 25. Nc5 {[%emt 0:01:06]} Qb5 {[%emt 0:02:46]} 26. Qxb5 {[%emt 0:04:15]} axb5 {[%emt 0:00:01]} 27. Nd7 {[%emt 0:02:22]} Rf4 {[%emt 0:01:41]} 28. Rc7 {[%emt 0:03:15]} Nc6 {[%emt 0:02:14]} 29. Rxb7 {[%emt 0:01:34]} Re4+ {[%emt 0:00:17]} 30. Kf1 {[%emt 0:00:36]} g4 {[%emt 0:00:21]} 31. Nh2 {[%emt 0:00:44]} Nxd4 {[%emt 0:00:49]} 32. Kg1 {[%emt 0:01:03]} Ne2+ {[%emt 0:01:09]} 33. Kf1 {[%emt 0:00:18]} Ng3+ {[%emt 0:00:18]} 34. Kf2 {[%emt 0:00:37]} Nxh5 {[%emt 0:00:17]} 35. g3 {[%emt 0:00:14]} Rc8 {[%emt 0:00:02]} 36. Rb8 {[%emt 0:01:02]} Rxb8 {[%emt 0:03:39]} 37. Nxb8 {[%emt 0:00:06]} Rxe5 {[%emt 0:00:04]} 38. Nxg4 {[%emt 0:00:35]} Rg5 {[%emt 0:00:01]} 39. Ne3 {[%emt 0:00:52]} Nxg3 {[%emt 0:01:17]} 40. Nc6 {[%emt 0:00:26]} Bf6 {[%emt 0:00:30]} 0-1

[Event "105th British-ch 2018"]
[Site "Hull"]
[Date "2018.08.02"]
[Round "6"]
[White "Krzyzanowski, Patryk"]
[Black "Zapolskis, Antanas J"]
[Result "0-1"]
[ECO "B00"]
[WhiteElo "2087"]
[BlackElo "2283"]
[Annotator "RC"]
[PlyCount "38"]
[EventDate "2018.07.28"]
[EventType "swiss"]
[EventCountry "GBR"]
[SourceTitle "playchess.com"]
[Source "ChessBase"]
[SourceQuality "1"]
[TimeControl "40/5400+30:1800+30"]

1. d4 {[%emt 0:00:00]} b5 {[%emt 0:00:00]} 2. e4 {[%emt 0:00:02]} a6 {[%emt 0:00:00]} 3. a4 {[%emt 0:00:44]} Bb7 {[%emt 0:01:23]} 4. axb5 {[%emt 0:00:37]} axb5 {[%emt 0:00:06]} 5. Rxa8 {[%emt 0:01:02]} Bxa8 {[%emt 0:00:06]} 6. d5 {[%emt 0:00:41]} Nf6 {[%emt 0:00:47]} 7. Qd4 {[%emt 0:01:49]} c5 {[%emt 0:03:29]} 8. Qxc5 {[%emt 0:02:57]} Nxe4 {[%emt 0:01:00]} 9. Qxb5 {[%emt 0:01:08]} Nd6 {[%emt 0:01:20]} 10. Qb3 {[%emt 0:14:35]} e6 {[%emt 0:09:30]} 11. Bf4 {[%emt 0:09:44]} Bxd5 {[%emt 0:00:26]} 12. c4 {[%emt 0:00:08]} Bc6 {[%emt 0:06:59]} 13. Nf3 {[%emt 0:17:19]} Bxf3 {[%emt 0:21:08]} 14. Qxf3 {[%emt 0:15:07]} Nc6 {[%emt 0:13:46]} 15. Qd1 {[%emt 0:04:27]} Ne4 {[%emt 0:04:03]} 16. Bd3 {[%emt 0:05:11]} Bb4+ {[%emt 0:00:08]} 17. Nd2 {[%emt 0:00:05]} Qf6 {[%emt 0:01:13]} 18. O-O {[%emt 0:07:39]} Nc5 {[%emt 0:01:21]} 19. Ne4 {[%emt 0:01:05]} Qxf4 {[%emt 0:04:50]} 0-1

[Event "105th British-ch 2018"]
[Site "Hull"]
[Date "2018.08.02"]
[Round "6"]
[White "Verma, Aditya"]
[Black "Price, Gwilym T"]
[Result "1-0"]
[ECO "B45"]
[WhiteElo "2084"]
[BlackElo "2085"]
[Annotator "NA"]
[PlyCount "77"]
[EventDate "2018.07.28"]
[EventType "swiss"]
[EventCountry "GBR"]
[SourceTitle "playchess.com"]
[Source "ChessBase"]
[SourceQuality "1"]
[TimeControl "40/5400+30:1800+30"]

1. e4 {[%emt 0:00:00]} c5 {[%emt 0:00:00]} 2. Nf3 {[%emt 0:00:00]} e6 {[%emt 0:00:00]} 3. d4 {[%emt 0:00:00]} cxd4 {[%emt 0:00:00]} 4. Nxd4 {[%emt 0:00:00]} Nf6 {[%emt 0:00:00]} 5. Nc3 {[%emt 0:00:00]} Nc6 {[%emt 0:00:01]} 6. g3 {[%emt 0:00:15]} d5 {[%emt 0:00:03]} 7. exd5 {[%emt 0:00:26]} Nxd5 {[%emt 0:00:06]} 8. Nxc6 {[%emt 0:00:39]} bxc6 {[%emt 0:00:06]} 9. Bg2 {[%emt 0:00:34]} Ba6 {[%emt 0:00:07]} 10. Bd2 {[%emt 0:04:31]} Be7 {[%emt 0:02:35]} 11. Ne2 {[%emt 0:10:49]} Qb6 {[%emt 0:10:47]} 12. b3 {[%emt 0:05:39]} Rd8 {[%emt 0:08:34]} 13. c4 {[%emt 0:17:00]} Nb4 {[%emt 0:03:40]} 14. O-O {[%emt 0:04:07]} Bf6 {[%emt 0:04:17]} 15. Rb1 {[%emt 0:02:03]} O-O {[%emt 0:03:22]} 16. a3 {[%emt 0:06:27]} Nd3 {[%emt 0:01:49]} 17. Qc2 {[%emt 0:05:26]} Kh8 {[%emt 0:11:29]} 18. Nf4 {[%emt 0:06:22]} Nxf4 {[%emt 0:02:03]} 19. Bxf4 {[%emt 0:00:06]} Rd7 {[%emt 0:01:59]} 20. Rfd1 {[%emt 0:06:35]} Rfd8 {[%emt 0:01:45]} 21. Rxd7 {[%emt 0:01:56]} Rxd7 {[%emt 0:00:02]} 22. Rd1 {[%emt 0:02:37]} Bd4 {[%emt 0:07:07]} 23. c5 {[%emt 0:02:27]} Qb7 {[%emt 0:02:45]} 24. Bd6 {[%emt 0:01:52]} Bf6 {[%emt 0:02:59]} 25. b4 {[%emt 0:04:25]} g6 {[%emt 0:04:46]} 26. h4 {[%emt 0:02:00]} Kg8 {[%emt 0:01:26]} 27. Kh2 {[%emt 0:00:44]} Bg7 {[%emt 0:01:49]} 28. Rb1 {[%emt 0:06:03]} Qc8 {[%emt 0:02:22]} 29. Rd1 {[%emt 0:02:06]} h5 {[%emt 0:01:25]} 30. a4 {[%emt 0:01:10]} Bf8 {[%emt 0:01:45]} 31. Bxf8 {[%emt 0:01:12]} Kxf8 {[%emt 0:00:30]} 32. Qc1 {[%emt 0:03:19]} Ke8 {[%emt 0:04:00]} 33. Rxd7 {[%emt 0:01:25]} Qxd7 {[%emt 0:00:44]} 34. Qf4 {[%emt 0:00:12]} Kd8 {[%emt 0:04:55]} 35. Qf6+ {[%emt 0:01:22]} Kc7 {[%emt 0:02:09]} 36. Qe5+ {[%emt 0:00:29]} Kd8 {[%emt 0:01:39]} 37. Qc3 {[%emt 0:01:04]} Be2 {[%emt 0:02:45]} 38. Qh8+ {[%emt 0:01:00]} Kc7 {[%emt 0:00:28]} 39. Qe5+ {[%emt 0:00:05]} 1-0